fUSD/lending_fUSD_20251211
["ID","MTS","AMOUNT","RATE_DAILY","PERIOD"]
[398269364,1765486248599,-151.0,0.00032877,14]
[398269365,1765486248609,-151.0,0.00032877,31]
[398269366,1765486248619,-151.0,0.00032877,31]
[398269367,1765486248629,-151.0,0.00032877,31]
[398269368,1765486248639,-151.0,0.00032877,31]
[398269369,1765486248650,-151.0,0.00032877,31]
[398269370,1765486248661,-168.761399,0.00032877,31]
[398269371,1765486248671,-151.0,0.00032877,31]
[398269372,1765486248681,-151.0,0.00032877,31]
[398269373,1765486248692,-345.260467,0.00032877,31]
[398269374,1765486248702,-345.260467,0.00032877,31]
[398269375,1765486248712,-345.260467,0.00032877,31]
[398269376,1765486248722,-345.260467,0.00032877,31]
[398269377,1765486248732,-151.0,0.00032877,31]
[398269378,1765486248742,-182.295236,0.00032877,31]
[398269379,1765486248751,-151.0,0.00032877,31]
[398269380,1765486248761,-151.0,0.00032877,31]
[398269381,1765486248772,-151.0,0.00032877,31]
[398269382,1765486248782,-299.292388,0.00032877,31]
[398269383,1765486248792,-255.306432,0.00032877,31]
[398269384,1765486248802,-151.0,0.00032877,31]
[398269385,1765486248812,-151.0,0.00032877,31]
[398269386,1765486248822,-157.17556,0.00032877,31]
[398269387,1765486248831,-211.719328,0.00032877,31]
[398269388,1765486248841,-151.0,0.00032877,31]
[398269389,1765486248851,-211.719328,0.00032877,31]
[398269390,1765486248862,-211.719328,0.00032877,31]
[398269391,1765486248872,-211.719328,0.00032877,31]
[398269392,1765486248882,-542.416035,0.00032877,31]
[398269393,1765486248891,-542.416035,0.00032877,31]
[398269394,1765486248903,-542.416035,0.00032877,31]
[398269395,1765486248912,-177.814239,0.00032877,31]
[398269396,1765486248922,-542.416035,0.00032877,31]
[398269397,1765486248932,-151.0,0.00032877,31]
[398269398,1765486248942,-151.0,0.00032877,31]
[398269399,1765486248951,-151.0,0.00032877,31]
[398269400,1765486248962,-151.0,0.00032877,31]
[398269401,1765486248971,-159.003408,0.00032877,31]
[398269402,1765486248980,-151.0,0.00032877,31]
[398269403,1765486248990,-151.0,0.00032877,31]
[398269404,1765486249000,-151.0,0.00032877,31]
[398269405,1765486249015,-251.176308,0.00032877,31]
[398269406,1765486249024,-151.0,0.00032877,31]
[398269407,1765486249035,-151.0,0.00032877,31]
[398269408,1765486249044,-151.0,0.00032877,31]
[398269409,1765486249055,-151.0,0.00032877,31]
[398269410,1765486249065,-159.144266,0.00032877,31]
[398269411,1765486249076,-151.0,0.00032877,31]
[398269412,1765486249088,-151.0,0.00032877,31]
[398269413,1765486249099,-151.0,0.00032877,31]
[398269414,1765486249109,-151.0,0.00032877,31]
[398269415,1765486249119,-151.0,0.00032877,31]
[398269416,1765486249129,-151.0,0.00032877,31]
[398269417,1765486249139,-171.597329,0.00032877,31]
[398269418,1765486249150,-171.597329,0.00032877,31]
[398269419,1765486249160,-171.597329,0.00032877,31]
[398269420,1765486249170,-171.597329,0.00032877,31]
[398269421,1765486249181,-168.83,0.000329,14]
[398269422,1765486249191,-152.0,0.00032988,3]
[398269423,1765486249201,-1000.0,0.00033,9]
[398269424,1765486249211,-151.0,0.00033,31]
[398269425,1765486249220,-722.06,0.00033165,2]
[398269426,1765486249230,-156.0,0.00033226,30]
[398269427,1765486249239,-151.0,0.00033415,31]
[398269428,1765486249250,-151.0,0.00033415,31]
[398269429,1765486249259,-151.0,0.00033415,31]
[398269430,1765486249269,-151.0,0.00033415,31]
[398269431,1765486249279,-151.0,0.00033415,30]
[398269432,1765486249289,-151.0,0.00033415,31]
[398269433,1765486249299,-151.0,0.00033415,31]
[398269434,1765486249308,-151.0,0.00033415,31]
[398269435,1765486249318,-152.051019,0.00033415,31]
[398269436,1765486249328,-151.0,0.00033425,31]
[398269437,1765486249337,-157.098488,0.00033425,31]
[398269438,1765486249347,-152.753545,0.00033425,31]
[398269439,1765486249356,-151.0,0.00033425,31]
[398269440,1765486249365,-151.0,0.00033425,31]
[398269441,1765486249375,-151.0,0.00033425,31]
[398269442,1765486249384,-151.0,0.00033425,31]
[398269443,1765486249393,-151.0,0.00033425,31]
[398269444,1765486249403,-151.0,0.00033425,31]
[398269445,1765486249413,-151.0,0.00033425,31]
[398269446,1765486249422,-150.0,0.00033699,2]
[398269447,1765486249432,-381.19,0.00033699,2]
[398269448,1765486249441,-150.0,0.00033699,2]
[398269449,1765486249451,-300.0,0.00033699,2]
[398269450,1765486249461,-463.81,0.00033699,2]
[398269451,1765486249471,-463.81,0.00033699,2]
[398269452,1765486249481,-463.45,0.00033699,2]
[398269453,1765486249491,-3389.17375405,0.00033805,2]
[398269454,1765486249500,-154.9321667,0.000339,21]
[398269455,1765486249510,-151.0,0.00033997,14]
[398269456,1765486249519,-500.0,0.00033999,30]
[398269457,1765486249529,-34148.69026663,0.00034,2]
[398269458,1765486249545,-40568.78794631,0.00034,2]
[398269459,1765486249555,-151.0,0.00034,31]
[398269460,1765486249565,-151.0,0.00034,31]
[398269461,1765486249575,-332.375528,0.00034,5]
[398269462,1765486249584,-151.0,0.00034,31]
[398269463,1765486249594,-151.0,0.00034,31]
[398269464,1765486249603,-229.057414,0.00034,2]
[398269465,1765486249614,-229.057414,0.00034,2]
[398269466,1765486249624,-229.057414,0.00034,2]
[398269467,1765486249634,-229.057414,0.00034,2]
[398269468,1765486249644,-151.0,0.00034,31]
[398269469,1765486249656,-151.0,0.00034,31]
[398269470,1765486249666,-151.0,0.00034,31]
[398269471,1765486249676,-151.0,0.00034,31]
[398269472,1765486249686,-151.0,0.00034,31]
[398269473,1765486249695,-151.0,0.00034,31]
[398269474,1765486249705,-151.0,0.00034,31]
[398269475,1765486249715,-345.260467,0.00034,31]
[398269476,1765486249724,-345.260467,0.00034,31]
[398269477,1765486249734,-345.260467,0.00034,31]
[398269478,1765486249744,-345.260467,0.00034,31]
[398269479,1765486249754,-151.0,0.00034,31]
[398269480,1765486249765,-151.0,0.00034,31]
[398269481,1765486249774,-151.0,0.00034,31]
[398269482,1765486249784,-151.0,0.00034,31]
[398269483,1765486249793,-151.0,0.00034,31]
[398269484,1765486249803,-211.719328,0.00034,31]
[398269485,1765486249812,-151.0,0.00034,31]
[398269486,1765486249823,-211.719328,0.00034,31]
[398269487,1765486249832,-211.719328,0.00034,31]
[398269488,1765486249843,-211.719328,0.00034,31]
[398269489,1765486249852,-542.416035,0.00034,31]
[398269490,1765486249862,-542.416035,0.00034,31]
[398269491,1765486249872,-542.416035,0.00034,31]
[398269492,1765486249882,-542.416035,0.00034,31]
[398269493,1765486249891,-151.0,0.00034,31]
[398269494,1765486249901,-151.0,0.00034,31]
[398269495,1765486249911,-151.0,0.00034,31]
[398269496,1765486249921,-151.0,0.00034,31]
[398269497,1765486249930,-151.0,0.00034,31]
[398269498,1765486249939,-162.775901,0.00034,31]
[398269499,1765486249949,-151.0,0.00034,31]
[398269500,1765486249958,-990.198272,0.00034,31]
[398269501,1765486249968,-990.198272,0.00034,31]
[398269502,1765486249978,-990.198272,0.00034,31]
[398269503,1765486249987,-990.198272,0.00034,31]
[398269504,1765486249997,-151.0,0.00034,30]
[398269505,1765486250013,-265.399848,0.00034,30]
[398269506,1765486250024,-151.0,0.00034,31]
[398269507,1765486250033,-151.0,0.00034,31]
[398269508,1765486250043,-151.0,0.00034,31]
[398269509,1765486250054,-151.0,0.00034,31]
[398269510,1765486250064,-278.658231,0.00034,31]
[398269511,1765486250075,-151.0,0.00034,31]
[398269512,1765486250086,-278.658231,0.00034,31]
[398269513,1765486250096,-278.658231,0.00034,31]
[398269514,1765486250107,-278.658231,0.00034,31]
[398269515,1765486250116,-151.0,0.00034,31]
[398269516,1765486250126,-151.0,0.00034,31]
[398269517,1765486250136,-151.0,0.00034,31]
[398269518,1765486250147,-151.0,0.00034,31]
[398269519,1765486250157,-1098.0,0.00034057,5]
[398269520,1765486250167,-358.14596866,0.00034213,2]
[398269521,1765486250176,-498.4,0.00034327,30]
[398269522,1765486250185,-1234.89,0.00034384,2]
[398269523,1765486250195,-150.0,0.00034521,2]
[398269524,1765486250204,-150.0,0.00034521,2]
[398269525,1765486250214,-150.0,0.00034521,2]
[398269526,1765486250224,-150.0,0.00034521,2]
[398269527,1765486250234,-150.0,0.00034521,2]
[398269528,1765486250243,-150.0,0.00034521,2]
[398269529,1765486250253,-150.0,0.00034521,2]
[398269530,1765486250263,-150.0,0.00034521,2]
[398269531,1765486250272,-154.93216666,0.00034681,22]
[398269532,1765486250281,-5000.0,0.00035196,2]
[398269533,1765486250291,-960.62,0.00035342,2]
[398269534,1765486250300,-480.43,0.00035342,2]
[398269535,1765486250310,-479.76,0.00035342,2]
[398269536,1765486250320,-703.56,0.00035342,2]
[398269537,1765486250330,-2049.74,0.00035342,2]
[398269538,1765486250339,-552.86,0.00035342,2]
[398269539,1765486250349,-170.32,0.00035342,2]
[398269540,1765486250360,-300.0,0.00035342,2]
[398269541,1765486250369,-552.86,0.00035342,2]
[398269542,1765486250379,-1072.11497817,0.0003541,5]
[398269543,1765486250388,-154.93216666,0.00035462,23]
[398269544,1765486250399,-237.979136,0.000355,31]
[398269545,1765486250409,-151.0,0.000355,31]
[398269546,1765486250418,-151.0,0.000355,31]
[398269547,1765486250427,-151.0,0.000355,31]
[398269548,1765486250437,-151.0,0.000355,31]
[398269549,1765486250447,-297.673396,0.000355,31]
[398269550,1765486250456,-151.0,0.000355,31]
[398269551,1765486250465,-151.0,0.000355,31]
[398269552,1765486250475,-151.0,0.000355,31]
[398269553,1765486250485,-195.689487,0.000355,31]
[398269554,1765486250495,-171.597329,0.000355,31]
[398269555,1765486250505,-171.597329,0.000355,31]
[398269556,1765486250514,-171.597329,0.000355,31]
[398269557,1765486250524,-171.597329,0.000355,31]
[398269558,1765486250534,-500.0,0.00035616,2]
[398269559,1765486250543,-1098.0,0.00035759,5]
[398269560,1765486250553,-152.0,0.00035857,4]
[398269561,1765486250563,-150.0,0.00036,7]
[398269562,1765486250574,-150.0,0.00036,7]
[398269563,1765486250584,-150.0,0.00036,7]
[398269564,1765486250594,-150.0,0.00036,7]
[398269565,1765486250604,-150.0,0.00036,7]
[398269566,1765486250614,-150.00000001,0.00036,7]
[398269567,1765486250624,-150.0,0.00036,7]
[398269568,1765486250635,-150.0,0.00036,7]
[398269569,1765486250644,-150.0,0.00036,7]
[398269570,1765486250654,-150.0,0.00036,7]
[398269571,1765486250663,-150.0,0.00036,7]
[398269572,1765486250673,-150.0,0.00036,7]
[398269573,1765486250683,-300.0,0.00036164,2]
[398269574,1765486250693,-178.09,0.00036164,2]
[398269575,1765486250703,-170.32,0.00036164,2]
[398269576,1765486250712,-463.81,0.00036164,2]
[398269577,1765486250721,-150.0,0.00036164,2]
[398269578,1765486250730,-170.32,0.00036164,2]
[398269579,1765486250740,-150.0,0.00036164,2]
[398269580,1765486250750,-150.0,0.00036164,2]
[398269581,1765486250759,-170.32,0.00036164,2]
[398269582,1765486250769,-356.17,0.00036164,2]
[398269583,1765486250778,-150.0,0.00036164,2]
[398269584,1765486250788,-170.32,0.00036164,2]
[398269585,1765486250797,-170.01,0.00036164,2]
[398269586,1765486250807,-75.15154492,0.00036164,2]
[398269587,1765486250822,-74.84845508,0.00036164,2]
[398269588,1765486250831,-150.0,0.00036164,2]
[398269589,1765486250841,-150.0,0.00036164,2]
[398269590,1765486250851,-150.0,0.00036164,2]
[398269591,1765486250860,-23.01469041,0.00036164,2]
[398269592,1765486250872,-276.98530959,0.00036164,2]
[398269593,1765486250882,-199.3669345,0.0003617,2]
[398269594,1765486251178,-621.06999944,0.0003617,2]
[398269607,1765487417335,577.64,0.00013699,2]
[398269636,1765487431908,-157.25,0.00016527,2]
[398269639,1765487431919,-250.0,0.00017,2]
[398269641,1765487431929,-219.38471759,0.00017121,2]
[398269643,1765487431939,-3.67528241,0.00017122,2]
[398269645,1765487431951,-352.58316129,0.00017122,2]
[398269647,1765487431961,-387.28,0.00017138,2]
[398269650,1765487431972,-4909.19431664,0.0001722,2]
[398269652,1765487431987,-376.15181566,0.00017221,2]
[398269655,1765487431998,-1200.0,0.00017221,2]
[398269656,1765487432008,-8405.5736,0.00017222,2]
[398269657,1765487432019,-275486.48880716,0.00017222,2]
[398269668,1765487432117,-349.5011115,0.00017222,2]
[398269671,1765487432142,-4577.75,0.00017222,2]
[398269687,1765487432435,-5881.96855336,0.00017222,2]
[398269694,1765487437990,-500.0,0.00017221,2]
[398269695,1765487438000,-396.94,0.00017221,2]
[398269696,1765487438046,-103.06,0.00017221,2]
[398269697,1765487438059,-500.0,0.00017221,2]
[398269698,1765487438069,-500.0,0.00017221,2]
[398269699,1765487438080,-500.0,0.00017221,2]
[398269700,1765487438090,-500.0,0.00017221,2]
[398269701,1765487438100,-500.0,0.00017221,2]
[398269702,1765487438110,-500.0,0.00017221,2]
[398269703,1765487438120,-500.0,0.00017221,2]
[398269704,1765487438133,-500.0,0.00017221,2]
[398269705,1765487438144,-500.0,0.00017221,2]
[398269706,1765487438154,-500.0,0.00017221,2]
[398269707,1765487438163,-500.0,0.00017221,2]
[398269708,1765487438173,-500.0,0.00017221,2]
[398269709,1765487438184,-500.0,0.00017221,2]
[398269710,1765487438194,-260006.83532798,0.00017222,2]
[398269711,1765487438204,-405.0,0.0001732,2]
[398269712,1765487438215,-387.28,0.0001804,2]
[398269713,1765487438224,-387.28,0.00018943,2]
[398269714,1765487438235,-300.0,0.00019,2]
[398269715,1765487438245,-387.28,0.00019845,2]
[398269716,1765487438256,-4909.19431664,0.00019851,2]
[398269717,1765487438266,-323.04898223,0.00019905,2]
[398269718,1765487438279,-157.55713436,0.00019905,2]
[398269719,1765487438289,-577.64,0.00020187,2]
[398269720,1765487438299,-387.28,0.00020747,2]
[398269721,1765487438309,-387.28,0.00021649,2]
[398269722,1765487438320,-4909.19431664,0.00022482,2]
[398269725,1765487438336,-372.99091516,0.00022507,2]
[398269728,1765487438354,-387.28,0.00022551,2]
[398269730,1765487438369,-387.28,0.00023453,2]
[398269732,1765487438383,-168.0,0.00024252,2]
[398269735,1765487438397,-168.0,0.00024278,2]
[398269738,1765487438414,-168.0,0.00024343,2]
[398269744,1765487438442,-387.28,0.00024355,2]
[398269749,1765487438470,-168.0,0.00024847,2]
[398269752,1765487438493,-59.5939922,0.00024894,9]
[398269756,1765487438522,-440.4060078,0.00024894,9]
[398269759,1765487438543,-500.0,0.00024894,9]
[398269762,1765487438558,-500.0,0.00024894,9]
[398269764,1765487438573,-500.0,0.00024894,9]
[398269767,1765487438590,-500.0,0.00024894,9]
[398269768,1765487438607,-500.0,0.00024894,9]
[398269769,1765487438625,-500.0,0.00024894,9]
[398269770,1765487438643,-500.0,0.00024894,9]
[398269771,1765487438659,-159.73776776,0.00024894,9]
[398269777,1765487440060,-340.26223224,0.00024894,9]
[398269778,1765487440076,-500.0,0.00024894,9]
[398269779,1765487440092,-154.467,0.00025,2]
[398269780,1765487440106,-4909.19431664,0.00025113,2]
[398269781,1765487440120,-387.28,0.00025257,2]
[398269782,1765487440137,-168.0,0.00025553,2]
[398269783,1765487440157,-168.0,0.00025795,2]
[398269784,1765487440173,-387.28,0.00026159,2]
[398269785,1765487440189,-1324.509,0.00026608,14]
[398269786,1765487440203,-1098.0,0.00026617,2]
[398269787,1765487440215,-577.64,0.00026676,2]
[398269788,1765487440228,-387.28,0.00027061,2]
[398269789,1765487440241,-387.28,0.00027963,2]
[398269790,1765487440258,-1098.0,0.00028018,5]
[398269791,1765487440270,-1000.0,0.000282,2]
[398269792,1765487440283,-387.28,0.00028865,2]
[398269793,1765487440294,-166.66,0.00029263,30]
[398269794,1765487440306,-1098.0,0.00029419,5]
[398269795,1765487440320,-387.28,0.00029767,2]
[398269796,1765487440336,-166.66,0.00029879,30]
[398269797,1765487440348,-150.0,0.00030267,2]
[398269798,1765487440360,-166.66,0.00030495,30]
[398269799,1765487440372,-387.28,0.00030669,2]
[398269800,1765487440386,-200.0,0.00030703,2]
[398269801,1765487440406,-1098.0,0.0003089,5]
[398269802,1765487440420,-166.66,0.00031111,30]
[398269803,1765487440433,-387.28,0.00031571,2]
[398269804,1765487440447,-166.66,0.00031727,30]
[398269805,1765487440461,-1000.0,0.000319,2]
[398269806,1765487440476,-166.66,0.00032343,30]
[398269807,1765487440490,-387.28,0.00032473,2]
[398269808,1765487440503,-10000.0,0.00032777,2]
[398269809,1765487440517,-500.0,0.00032867,14]
[398269810,1765487440531,-161.0,0.00033,14]
[398269811,1765487440546,-577.64,0.00033165,2]
[398269812,1765487440560,-151.0,0.00033372,14]
[398269813,1765487440572,-387.28,0.00033375,2]
[398269814,1765487440586,-2026.81,0.00033519,2]
[398269815,1765487440599,-1500.0,0.00034238,120]
[398269816,1765487440612,-387.28,0.00034277,2]
[398269817,1765487440625,-446.01,0.00034327,30]
[398269818,1765487440639,-703.56,0.00034384,2]
[398269819,1765487440652,-1000.0,0.00034449,2]
[398269820,1765487440665,-201.77,0.00034469,2]
[398269821,1765487440677,-999.0,0.00034474,3]
[398269822,1765487440690,-161.0,0.00034521,30]
[398269823,1765487440704,-2144.74971816,0.00035085,2]
[398269824,1765487440716,-1000.0,0.00035605,7]
[398269825,1765487440729,-201.77,0.00035762,2]
[398269826,1765487440742,-200.0,0.00035881,10]
[398269827,1765487440756,-150.0,0.00036,7]
[398269828,1765487440771,-150.0,0.00036,7]
[398269829,1765487440784,-150.0,0.00036,7]
[398269830,1765487440797,-150.0,0.00036,7]
[398269831,1765487440808,-150.0,0.00036,7]
[398269832,1765487440821,-150.0,0.00036,7]
[398269833,1765487440833,-150.0,0.00036,7]
[398269834,1765487440846,-150.0,0.00036,7]
[398269835,1765487440858,-150.0,0.00036,7]
[398269836,1765487440871,-150.0,0.00036,7]
[398269837,1765487440884,-150.0,0.00036,7]
[398269838,1765487440897,-934.70843283,0.000361,2]
[398269839,1765487440910,-500.0,0.00036134,2]
[398269840,1765487440923,-927.29,0.00036164,2]
[398269841,1765487440936,-300.01,0.00036164,2]
[398269842,1765487440949,-1000.0,0.00036169,2]
[398269843,1765487440962,-150.0,0.0003619,7]
[398269844,1765487440975,-150.0,0.00036211,7]
[398269845,1765487440988,-150.0,0.00036267,7]
[398269846,1765487441000,-1252.18,0.00036301,2]
[398269847,1765487441012,-150.0,0.00036333,7]
[398269848,1765487441024,-150.0,0.00036364,7]
[398269849,1765487441038,-150.0,0.00036381,7]
[398269850,1765487441051,-150.0,0.000364,7]
[398269851,1765487441064,-150.0,0.00036421,7]
[398269852,1765487441076,-1851.12926856,0.00036504,2]
[398269853,1765487441092,-648.87073144,0.00036504,2]
[398269854,1765487441105,-150.0,0.00036533,7]
[398269855,1765487441117,-150.0,0.00036571,7]
[398269856,1765487441131,-150.0,0.00036571,7]
[398269857,1765487441143,-30794.5827,0.000366,2]
[398269858,1765487441156,-4685.68931695,0.00036604,2]
[398269859,1765487441169,-150.0,0.00036632,7]
[398269860,1765487441181,-934.70843282,0.00036633,2]
[398269861,1765487441194,-150.0,0.00036667,7]
[398269862,1765487441207,-21179.81599365,0.000367,2]
[398269863,1765487441220,-235.1,0.000367,14]
[398269864,1765487441233,-500.0,0.000367,30]
[398269865,1765487441247,-500.0,0.000367,30]
[398269866,1765487441260,-500.0,0.000367,30]
[398269867,1765487441273,-500.0,0.000367,30]
[398269868,1765487441286,-500.0,0.000367,30]
[398269869,1765487441299,-500.0,0.000367,30]
[398269870,1765487441312,-500.0,0.000367,30]
[398269871,1765487441324,-500.0,0.000367,30]
[398269872,1765487441335,-500.0,0.000367,30]
[398269873,1765487441348,-500.0,0.000367,30]
[398269874,1765487441360,-500.0,0.000367,30]
[398269875,1765487441372,-500.0,0.000367,30]
[398269876,1765487441388,-500.0,0.000367,30]
[398269877,1765487441401,-500.0,0.000367,30]
[398269878,1765487441413,-500.0,0.000367,30]
[398269879,1765487441426,-500.0,0.000367,30]
[398269880,1765487441440,-500.0,0.000367,30]
[398269881,1765487441452,-500.0,0.000367,30]
[398269882,1765487441467,-500.0,0.000367,30]
[398269883,1765487441479,-500.0,0.000367,30]
[398269884,1765487441492,-500.0,0.000367,30]
[398269885,1765487441503,-500.0,0.000367,30]
[398269886,1765487441515,-500.0,0.000367,30]
[398269887,1765487441527,-500.0,0.000367,30]
[398269888,1765487441540,-500.0,0.000367,30]
[398269889,1765487441553,-500.0,0.000367,30]
[398269890,1765487441565,-500.0,0.000367,30]
[398269891,1765487441576,-500.0,0.000367,30]
[398269892,1765487441589,-500.0,0.000367,30]
[398269893,1765487441602,-500.0,0.000367,30]
[398269894,1765487441614,-500.0,0.000367,30]
[398269895,1765487441629,-500.0,0.000367,30]
[398269896,1765487441641,-500.0,0.000367,30]
[398269897,1765487441654,-500.0,0.000367,30]
[398269898,1765487441668,-500.0,0.000367,30]
[398269899,1765487441681,-500.0,0.000367,30]
[398269900,1765487441694,-500.0,0.000367,30]
[398269901,1765487441706,-500.0,0.000367,30]
[398269902,1765487442014,-500.0,0.000367,30]
[398269903,1765487442041,-500.0,0.000367,30]
[398269904,1765487442052,-500.0,0.000367,30]
[398269905,1765487442062,-500.0,0.000367,30]
[398269906,1765487442071,-500.0,0.000367,30]
[398269907,1765487442081,-500.0,0.000367,30]
[398269908,1765487442090,-500.0,0.000367,30]
[398269909,1765487442100,-666.44201879,0.000367,30]
[398269910,1765487442109,-937.0940856,0.000367,30]
[398269911,1765487442118,-500.0,0.000367,30]
[398269912,1765487442128,-500.0,0.000367,30]
[398269913,1765487442138,-500.0,0.000367,30]
[398269914,1765487442147,-500.0,0.000367,30]
[398269915,1765487442157,-500.0,0.000367,30]
[398269916,1765487442167,-500.0,0.000367,30]
[398269917,1765487442177,-500.0,0.000367,30]
[398269918,1765487442187,-500.0,0.000367,30]
[398269919,1765487442196,-500.0,0.000367,30]
[398269920,1765487442207,-500.0,0.000367,30]
[398269921,1765487442216,-500.0,0.000367,30]
[398269922,1765487442226,-500.0,0.000367,30]
[398269923,1765487442236,-705.10772608,0.000367,30]
[398269924,1765487442245,-150.0,0.00036727,7]
[398269925,1765487442255,-150.0,0.00036762,7]
[398269926,1765487442264,-150.0,0.000368,7]
[398269927,1765487442274,-150.0,0.000368,7]
[398269928,1765487442285,-150.0,0.00036842,7]
[398269929,1765487442295,-150.0,0.00036952,7]
[398269930,1765487442304,-151.0,0.00036983,14]
[398269931,1765487442313,-74652.68,0.00036986,30]
[398269932,1765487442323,-463.81,0.00036986,2]
[398269933,1765487442333,-1216.3,0.00036986,2]
[398269934,1765487442342,-552.86,0.00036986,2]
[398269935,1765487442352,-552.86,0.00036986,2]
[398269936,1765487442362,-300.0,0.00036986,2]
[398269937,1765487442371,-552.46,0.00036986,2]
[398269938,1765487442382,-1242.82,0.00036986,2]
[398269939,1765487442393,-300.0,0.00036986,2]
[398269940,1765487442402,-1216.3,0.00036986,2]
[398269941,1765487442412,-1216.3,0.00036986,2]
[398269942,1765487442422,-1216.3,0.00036986,2]
[398269943,1765487442432,-480.8162296,0.00037,30]
[398269944,1765487442442,-186.0,0.00037,30]
[398269945,1765487442452,-150.0,0.00037,7]
[398269946,1765487442464,-150.0,0.00037053,7]
[398269947,1765487442473,-201.77,0.00037055,2]
[398269948,1765487442483,-150.0,0.00037067,7]
[398269949,1765487442492,-150.0,0.00037091,7]
[398269950,1765487442502,-9587.34569678,0.00037096,2]
[398269951,1765487442511,-5000.0,0.00037096,2]
[398269952,1765487442520,-5000.0,0.00037096,2]
[398269953,1765487442530,-5000.0,0.00037096,2]
[398269954,1765487442540,-150.0,0.00037143,7]
[398269955,1765487442549,-150.0,0.00037143,7]
[398269956,1765487442559,-934.70843282,0.00037167,2]
[398269957,1765487442568,-150.0,0.000372,7]
[398269958,1765487442577,-150.0,0.00037263,7]
[398269959,1765487442588,-150.0,0.00037333,7]
[398269960,1765487442598,-150.0,0.00037333,7]
[398269961,1765487442608,-150.0,0.00037333,7]
[398269962,1765487442618,-150.0,0.00037333,7]
[398269963,1765487442628,-150.0,0.00037455,7]
[398269964,1765487442643,-150.0,0.00037474,7]
[398269965,1765487442654,-150.0,0.000375,60]
[398269966,1765487442665,-150.0,0.00037524,7]
[398269967,1765487442676,-500.0,0.00037581,30]
[398269968,1765487442690,-790.0,0.00037582,5]
[398269969,1765487442700,-5011.97476147,0.00037582,2]
[398269970,1765487442710,-5000.0,0.00037582,2]
[398269971,1765487442719,-5000.0,0.00037582,2]
[398269972,1765487442729,-150.0,0.000376,7]
[398269973,1765487442739,-150.0,0.000376,7]
[398269974,1765487442749,-574.84941662,0.0003761,2]
[398269975,1765487442759,-300.0,0.0003761,2]
[398269977,1765487442770,-303.15225682,0.0003761,2]
[398269979,1765487442780,-300.0,0.0003761,2]
[398269982,1765487442791,-302.34110853,0.0003761,2]
[398269983,1765487442802,-300.0,0.0003761,2]
[398269984,1765487442812,-473.55350435,0.0003761,2]
[398269985,1765487442822,-300.0,0.0003761,2]
[398269986,1765487442831,-303.15225682,0.0003761,2]
[398269987,1765487442842,-300.0,0.0003761,2]